bitfinex/quotes_SOLUSD_20240717
["timestamp","ask_amount","ask_price","bid_price","bid_amount"]
[1721218860824,14.79,161.29,161.25,46.24017327]
[1721218861338,14.79,161.29,161.25,45.0]
[1721218861540,14.79,161.29,161.26,1.24007469]
[1721218862741,14.79,161.28,161.25,45.0]
[1721218863036,14.79,161.29,161.26,1.24007844]
[1721218863247,14.79,161.29,161.25,45.0]
[1721218863743,14.79,161.28,161.24,20.0]
[1721218864252,14.79,161.28,161.25,1.24015064]
[1721218864933,14.79,161.29,161.25,1.24015064]
[1721218865129,14.79,161.29,161.26,10.0]
[1721218865347,14.79,161.29,161.25,10.0]
[1721218865531,14.79,161.28,161.24,45.0]
[1721218865922,14.79,161.28,161.25,11.24012822]
[1721218866341,14.79,161.28,161.25,21.24012822]
[1721218866543,14.79,161.3,161.25,21.24012822]
[1721218867339,14.79,161.29,161.25,21.24012822]
[1721218867543,1.55011068,161.31,161.25,10.0]
[1721218867544,14.79,161.28,161.25,10.0]
[1721218868030,14.79,161.29,161.26,1.24012072]
[1721218869833,14.79,161.28,161.25,20.0]
[1721218870031,14.79,161.28,161.25,21.24007096]
[1721218870227,14.79,161.29,161.25,21.24007096]
[1721218870435,14.79,161.29,161.25,20.0]
[1721218870619,14.79,161.29,161.25,10.0]
[1721218870825,14.79,161.29,161.26,1.24012028]
[1721218871135,14.79,161.28,161.25,10.0]
[1721218871444,14.79,161.29,161.26,1.24009772]
[1721218873149,14.79,161.29,161.25,20.0]
[1721218873330,1.55008406,161.31,161.25,20.0]
[1721218873331,14.79,161.27,161.25,20.0]
[1721218873532,14.79,161.27,161.25,10.0]
[1721218874632,14.79,161.26,161.24,45.0]
[1721218875034,14.79,161.27,161.24,45.0]
[1721218875342,14.79,161.25,161.22,6.45374464]
[1721218875547,14.79,161.25,161.23,65.0]
[1721218876046,14.79,161.25,161.23,20.0]
[1721218876251,14.79,161.24,161.19,22.11835236]
[1721218876444,14.79,161.24,161.21,10.0]
[1721218876627,14.79,161.24,161.22,20.0]
[1721218877028,1.55045452,161.27,161.22,20.0]
[1721218877250,14.79,161.25,161.22,20.0]
[1721218877549,14.79,161.26,161.23,11.24033433]
[1721218877845,14.79,161.26,161.23,20.0]
[1721218879129,14.79,161.26,161.24,1.24022893]
[1721218880235,14.79,161.27,161.24,1.24022893]
[1721218880528,14.79,161.27,161.23,20.0]
[1721218880737,14.79,161.26,161.23,20.0]
[1721218882259,14.79,161.26,161.24,1.24022895]
[1721218882635,14.79,161.26,161.23,20.0]
[1721218882935,7.74957611,161.31,161.23,20.0]
[1721218883150,7.74957611,161.31,161.25,10.0]
[1721218883151,14.79,161.27,161.25,10.0]
[1721218883457,14.79,161.27,161.25,1.24018282]
[1721218883636,14.79,161.27,161.24,1.24018225]
[1721218884351,14.79,161.28,161.24,1.24018225]
[1721218884657,14.79,161.28,161.23,20.0]
[1721218884658,14.79,161.27,161.23,20.0]
[1721218884860,1.55027611,161.31,161.26,20.0]
[1721218885057,14.79,161.31,161.27,46.23955969]
[1721218885352,14.79,161.31,161.28,10.0]
[1721218885748,14.79,161.31,161.29,1.23945532]
[1721218886046,14.79,161.32,161.29,1.23945532]
[1721218886231,14.79,161.31,161.29,1.23945532]
[1721218886431,1.54982566,161.35,161.3,20.0]
[1721218886744,14.79,161.34,161.3,20.0]
[1721218887052,14.79,161.33,161.3,10.0]
[1721218887256,14.79,161.32,161.29,15.3864]
[1721218887432,14.79,161.32,161.28,20.0]
[1721218887633,7.74741098,161.35,161.29,45.0]
[1721218887835,14.79,161.3,161.27,45.0]
[1721218889268,14.79,161.3,161.27,46.23967855]
[1721218889634,14.79,161.31,161.27,46.23967855]
[1721218890061,14.79,161.32,161.28,10.0]
[1721218890260,14.79,161.31,161.28,10.0]
[1721218891258,1.54991808,161.34,161.29,45.0]
[1721218891569,14.79,161.32,161.28,20.0]
[1721218891940,14.79,161.32,161.29,1.23942172]
[1721218892269,1.5498149,161.35,161.3,10.0]
[1721218892443,14.79,161.33,161.3,10.0]
[1721218893537,14.79,161.33,161.28,20.0]
[1721218893759,14.79,161.33,161.29,45.0]
[1721218893960,14.79,161.32,161.29,45.0]
[1721218895247,14.79,161.32,161.28,10.0]
[1721218895447,14.79,161.32,161.28,20.0]
[1721218896240,14.79,161.32,161.29,1.23931184]
[1721218896440,14.79,161.32,161.28,20.0]
[1721218898470,1.54976491,161.31,161.28,10.0]
[1721218898765,1.54976491,161.31,161.26,10.0]
[1721218898766,1.54993815,161.31,161.26,10.0]
[1721218899069,14.79,161.27,161.24,10.0]
[1721218899249,14.79,161.27,161.25,20.0]
[1721218899561,14.79,161.26,161.25,20.0]
[1721218899766,14.79,161.26,161.23,6.45639238]
[1721218899980,14.79,161.25,161.24,20.0]
[1721218900664,14.79,161.25,161.23,6.45639238]
[1721218900845,14.79,161.24,161.23,6.45639238]
[1721218901041,14.79,161.24,161.2,20.0]
[1721218901247,1.55054646,161.23,161.18,41.24584652]
[1721218901459,14.79,161.22,161.18,26.45584652]
[1721218901667,14.79,161.22,161.19,1.24058177]
[1721218902060,14.79,161.22,161.18,20.0]
[1721218902570,14.79,161.22,161.17,24.30360336]
[1721218902866,16.34072964,161.21,161.17,24.30360336]
[1721218903043,14.79,161.21,161.17,24.30360336]
[1721218903850,1.5509102,161.25,161.18,34.79]
[1721218904054,6.0095,161.29,161.19,45.0]
[1721218904055,14.79,161.23,161.19,45.0]
[1721218904469,14.79,161.23,161.2,1.24054394]
[1721218905168,65.3604,161.28,161.18,10.0]
[1721218905169,14.79,161.21,161.18,10.0]
[1721218905672,1.55090502,161.2,161.17,6.45648415]
[1721218905855,1.55090502,161.2,161.13,38.0555383]
[1721218905856,14.79,161.18,161.13,38.0555383]
[1721218906059,14.79,161.17,161.13,38.0555383]
[1721218906966,14.79,161.18,161.14,21.24095439]
[1721218907178,14.79,161.18,161.14,20.0]
[1721218908761,14.79,161.17,161.14,20.0]
[1721218909466,14.79,161.18,161.15,1.24103586]
[1721218910182,14.79,161.18,161.14,20.0]
[1721218910547,12.6705,161.23,161.14,20.0]
[1721218910548,16.34116045,161.17,161.14,20.0]
[1721218910752,6.4681,161.23,161.14,20.0]
[1721218910753,14.79,161.16,161.14,20.0]
[1721218910963,14.79,161.17,161.14,20.0]
[1721218912190,6.4681,161.23,161.12,6.45767781]
[1721218912191,1.55129205,161.16,161.12,6.45767781]
[1721218912495,14.79,161.15,161.12,6.45767781]
[1721218912779,66.91486456,161.2,161.12,1.24114702]
[1721218912962,14.79,161.17,161.12,1.24114702]
[1721218913162,1.55136456,161.2,161.12,1.24114702]
[1721218913163,16.34142944,161.16,161.12,1.24114702]
[1721218913468,14.79,161.16,161.12,1.24114702]
[1721218913677,1.55142946,161.19,161.12,20.0]
[1721218913975,14.79,161.17,161.13,45.0]
[1721218914365,14.79,161.17,161.13,65.0]
[1721218914680,14.79,161.17,161.14,1.24098401]
[1721218914874,14.79,161.17,161.12,21.24099154]
[1721218915083,6.4681,161.23,161.12,20.0]
[1721218915084,1.55123943,161.16,161.12,20.0]
[1721218915278,14.79,161.17,161.13,55.0]
[1721218915480,14.79,161.17,161.14,1.24098848]
[1721218915660,14.79,161.17,161.14,1.24095477]
[1721218916366,14.79,161.18,161.14,1.24095477]
[1721218916567,14.79,161.18,161.14,1.24095251]
[1721218917475,14.79,161.17,161.14,1.24095251]
[1721218917963,14.79,161.16,161.13,65.0]
[1721218918163,14.79,161.16,161.13,66.24099788]
[1721218918703,1.55119346,161.2,161.13,66.24099788]
[1721218918898,14.79,161.17,161.15,10.0]
[1721218920290,14.79,161.18,161.15,10.0]
[1721218920989,14.79,161.18,161.14,1.24092817]
[1721218921489,14.79,161.17,161.14,1.24092817]
[1721218921670,14.79,161.17,161.13,65.0]
[1721218921867,14.79,161.17,161.14,1.24091315]
[1721218922064,14.79,161.17,161.13,65.0]
[1721218922467,14.79,161.18,161.13,65.0]
[1721218922701,14.79,161.19,161.16,10.0]
[1721218923479,14.79,161.2,161.17,1.24075554]
[1721218924081,14.79,161.2,161.17,1.2407356]
[1721218925098,14.79,161.19,161.16,10.0]
[1721218926400,14.79,161.19,161.15,10.0]
[1721218926588,14.79,161.19,161.16,45.0]
[1721218927196,14.79,161.2,161.17,1.24076394]
[1721218927790,14.79,161.2,161.17,11.24076394]
[1721218928781,14.79,161.2,161.17,1.24076394]
[1721218928983,14.79,161.2,161.16,46.2407524]
[1721218929694,6.2023,161.23,161.15,10.0]
[1721218929695,16.34094364,161.19,161.15,10.0]
[1721218929897,14.79,161.16,161.12,10.0]
[1721218930998,14.79,161.15,161.11,6.43967439]
[1721218931184,14.79,161.14,161.11,6.43967439]
[1721218931602,14.79,161.13,161.11,6.43967439]
[1721218931800,14.79,161.13,161.08,12.92126071]
[1721218932312,14.79,161.14,161.1,10.0]
[1721218932516,14.79,161.13,161.1,10.0]
[1721218932879,14.79,161.14,161.1,10.0]
[1721218933103,14.79,161.13,161.11,45.0]
[1721218933405,1.55163709,161.16,161.1,10.0]
[1721218933406,14.79,161.14,161.1,10.0]
[1721218933703,14.79,161.14,161.11,1.24123041]
[1721218934395,14.79,161.14,161.1,10.0]
[1721218934704,1.55157965,161.13,161.11,45.0]
[1721218934899,1.55157965,161.13,161.1,45.0]
[1721218935091,16.34168692,161.13,161.1,45.0]
[1721218935404,16.34168692,161.13,161.09,45.0]
[1721218937406,14.79,161.13,161.09,45.0]
[1721218938387,14.79,161.13,161.1,1.24135471]
[1721218938704,14.79,161.13,161.09,46.24133836]
[1721218939316,14.79,161.12,161.09,46.24133836]
[1721218940422,14.79,161.12,161.09,45.0]
[1721218940612,14.79,161.12,161.08,0.8286672]
[1721218940613,14.79,161.1,161.08,0.8286672]
[1721218940921,14.79,161.09,161.08,0.8286672]
[1721218941997,14.79,161.09,161.08,45.8286672]
[1721218942423,14.79,161.09,161.08,0.8286672]
[1721218942923,16.4746,161.15,161.08,12.07027432]
[1721218943225,14.79,161.1,161.08,0.8286672]
[1721218943425,14.79,161.1,161.08,45.8286672]
[1721218943623,14.79,161.11,161.08,47.07018008]
[1721218944416,14.79,161.1,161.08,47.07018008]
[1721218944725,1.55176534,161.14,161.08,0.8286672]
[1721218945027,14.79,161.09,161.08,0.8286672]
[1721218945224,14.79,161.1,161.08,45.8286672]
[1721218945618,16.34176534,161.14,161.09,21.24152926]
[1721218945820,86.9652,161.2,161.1,45.0]
[1721218945821,14.79,161.15,161.1,45.0]
[1721218946020,14.79,161.15,161.11,1.24123386]
[1721218946505,7.75554233,161.19,161.11,1.24123386]
[1721218946506,14.79,161.14,161.11,1.24123386]
[1721218947213,14.79,161.14,161.1,46.24123742]
[1721218947421,14.79,161.13,161.1,46.24123742]
[1721218948631,14.79,161.11,161.1,45.0]
[1721218949819,14.79,161.12,161.1,45.0]
[1721218950020,14.79,161.13,161.1,45.0]
[1721218950218,14.79,161.12,161.1,46.24127847]
[1721218950420,14.79,161.13,161.1,46.24127847]
[1721218950624,14.79,161.13,161.1,45.0]
[1721218951126,14.79,161.14,161.1,46.24127907]
[1721218951439,14.79,161.14,161.1,45.0]
[1721218951740,14.79,161.14,161.11,1.24126753]
[1721218951926,14.79,161.13,161.11,1.24124834]
[1721218952234,14.79,161.14,161.11,1.24124834]
[1721218952437,14.79,161.13,161.1,45.0]
[1721218952634,14.79,161.13,161.1,46.24124819]
[1721218952933,14.79,161.13,161.1,45.0]
[1721218953337,14.79,161.13,161.08,2.0699164]
[1721218953524,80.7615,161.2,161.08,0.8286672]
[1721218953525,14.79,161.11,161.08,0.8286672]
[1721218953714,14.79,161.12,161.08,2.07018845]
[1721218954938,14.79,161.12,161.08,47.07018845]
[1721218956238,14.79,161.12,161.08,57.07018845]
[1721218956735,14.79,161.12,161.08,47.07018845]
[1721218959533,1.55188147,161.11,161.08,0.8286672]
[1721218959727,14.79,161.09,161.08,0.8286672]
[1721218960734,14.79,161.1,161.08,0.8286672]
[1721218960923,14.79,161.12,161.08,2.07009987]
[1721218961125,14.79,161.12,161.08,47.07009987]
[1721218961641,1.5517687,161.14,161.09,20.0]
[1721218961941,14.79,161.15,161.11,10.0]
[1721218962139,16.3415874,161.17,161.13,10.0]
[1721218962341,14.79,161.16,161.13,10.0]
[1721218962841,14.79,161.16,161.14,45.0]
[1721218963145,14.79,161.15,161.14,45.0]
[1721218964717,14.79,161.16,161.14,45.0]
[1721218964917,1.5515874,161.17,161.14,45.0]
[1721218965113,14.79,161.15,161.14,45.0]
[1721218966340,14.79,161.16,161.14,45.0]
[1721218966558,1.55136515,161.18,161.13,45.0]
[1721218966756,14.79,161.15,161.13,45.0]
[1721218966925,1.55136385,161.17,161.11,11.24121971]
[1721218967125,14.79,161.16,161.12,45.0]
[1721218967436,16.34139975,161.15,161.12,45.0]
[1721218967636,14.79,161.15,161.12,45.0]
[1721218969632,14.79,161.15,161.11,45.0]
[1721218970933,14.79,161.15,161.11,56.24118054]
[1721218971340,14.79,161.15,161.11,55.0]
[1721218971547,1.55147595,161.18,161.11,56.2411802]
[1721218971854,1.55147534,161.17,161.11,56.2411802]
[1721218974135,1.55147534,161.17,161.11,55.0]
[1721218974553,1.55147534,161.17,161.11,45.0]
[1721218975553,1.55147534,161.17,161.11,46.24117883]
[1721218975753,1.55147534,161.17,161.11,45.0]
[1721218976535,1.55147534,161.17,161.11,46.2411789]
[1721218977255,1.55147534,161.17,161.11,45.0]
[1721218978251,14.79,161.13,161.11,45.0]
[1721218978557,14.79,161.12,161.11,45.0]
[1721218980863,14.79,161.12,161.08,26.4623672]
[1721218981160,16.34171888,161.11,161.09,65.0]
[1721218981353,14.79,161.11,161.09,45.0]
[1721218981566,14.79,161.11,161.08,45.8286672]
[1721218981742,14.79,161.11,161.08,47.07015301]
[1721218982142,14.79,161.13,161.09,20.0]
[1721218982342,14.79,161.13,161.1,46.24129861]
[1721218982861,14.79,161.13,161.1,45.0]
[1721218983449,21.3017,161.19,161.11,20.0]
[1721218983450,14.79,161.14,161.11,20.0]
[1721218983761,14.79,161.16,161.12,45.0]
[1721218984264,1.55162416,161.18,161.13,11.24116107]
[1721218984457,14.79,161.16,161.12,45.0]
[1721218984762,1.55132699,161.17,161.13,1.24113808]
[1721218984951,14.79,161.16,161.12,45.0]
[1721218985155,14.79,161.16,161.12,46.24107091]
[1721218986464,14.79,161.16,161.12,45.0]
[1721218986783,14.79,161.16,161.12,46.24106847]
[1721218987984,14.79,161.16,161.12,45.0]
[1721218988474,14.79,161.16,161.12,46.24106909]
[1721218988774,14.79,161.15,161.12,45.0]
[1721218988977,14.79,161.15,161.11,45.0]
[1721218989153,14.79,161.13,161.11,45.0]
[1721218989355,14.79,161.13,161.09,10.0]
[1721218989550,14.79,161.13,161.1,50.0]
[1721218990152,16.34166359,161.13,161.1,20.0]
[1721218990380,1.55174582,161.12,161.08,0.8286672]
[1721218990554,1.55175876,161.15,161.1,10.0]
[1721218990756,14.79,161.14,161.1,10.0]
[1721218990962,16.3415933,161.13,161.08,10.8286672]
[1721218991160,14.79,161.12,161.08,0.8286672]
[1721218991457,14.79,161.13,161.08,12.07007039]
[1721218991652,14.79,161.13,161.09,30.0]
[1721218992172,14.79,161.13,161.09,40.0]
[1721218992354,14.79,161.13,161.1,45.0]
[1721218993071,16.34172684,161.12,161.08,2.07004867]
[1721218993273,14.79,161.12,161.08,22.07004867]
[1721218994363,14.79,161.13,161.09,10.0]
[1721218994561,14.79,161.14,161.1,1.24128748]
[1721218994960,14.79,161.14,161.1,46.24128748]
[1721218995159,14.79,161.13,161.1,45.0]
[1721218995361,1.5516586,161.16,161.11,10.0]
[1721218995666,14.79,161.15,161.12,45.0]
[1721218997376,14.79,161.16,161.12,46.241162]
[1721218998583,14.79,161.15,161.12,46.241162]
[1721218998873,14.79,161.15,161.12,45.0]
[1721219003266,14.79,161.14,161.12,45.0]
[1721219003662,14.79,161.15,161.12,45.0]
[1721219004479,16.34147812,161.14,161.09,20.0]
[1721219004685,14.79,161.14,161.1,95.0]
[1721219004998,14.79,161.13,161.1,95.0]
[1721219005186,16.3417468,161.12,161.08,7.21360645]
[1721219005365,14.79,161.14,161.09,65.0]
[1721219005572,14.79,161.13,161.09,20.0]
[1721219006271,14.79,161.14,161.1,1.24140961]
[1721219006474,1.55155899,161.13,161.09,20.0]
[1721219006676,16.34155899,161.13,161.1,45.0]
[1721219006985,14.79,161.13,161.1,45.0]
[1721219007772,16.34167883,161.12,161.08,7.21360645]
[1721219007967,14.79,161.12,161.09,45.0]
[1721219010368,14.79,161.13,161.09,45.0]
[1721219011579,14.79,161.13,161.1,11.24129857]
[1721219011775,14.79,161.13,161.11,46.24123758]
[1721219011973,14.79,161.13,161.11,45.0]
[1721219012777,14.79,161.14,161.11,45.0]
[1721219013176,14.79,161.14,161.11,46.24124138]
[1721219013377,14.79,161.13,161.11,46.24124138]
[1721219013665,14.79,161.14,161.11,45.0]
[1721219014591,14.79,161.13,161.11,45.0]
[1721219015177,14.79,161.13,161.08,17.21360645]
[1721219015374,14.79,161.13,161.09,45.0]
[1721219017487,1.55175546,161.12,161.09,45.0]
[1721219017690,14.79,161.1,161.08,7.21360645]
[1721219019391,16.34194288,161.09,161.08,7.21360645]
[1721219019593,14.79,161.09,161.08,7.21360645]
[1721219020175,14.79,161.09,161.08,0.8286672]
[1721219020176,16.34219438,161.09,161.08,0.8286672]
[1721219031181,22.50817478,161.09,161.02,6.39329624]
[1721219031395,22.50817478,161.09,160.96,10.0]
[1721219031396,14.79,161.03,160.98,10.0]
[1721219031599,14.79,161.03,160.99,11.24203171]
[1721219031814,14.79,161.03,160.98,47.12308082]
[1721219031995,14.79,161.03,160.99,11.2420732]
[1721219032296,14.79,161.02,160.99,10.0]
[1721219032681,14.79,161.02,161.0,45.0]
[1721219032877,14.79,161.03,161.0,45.0]
[1721219033082,1.55253964,161.06,161.0,45.0]
[1721219033401,14.79,161.03,161.0,45.0]
[1721219035288,14.79,161.01,160.98,22.33308082]
[1721219035495,14.79,161.01,160.99,45.0]
[1721219035890,14.79,161.02,160.99,46.24219703]
[1721219036101,14.79,161.02,160.99,45.0]
[1721219036894,14.79,161.03,160.99,45.0]
[1721219037507,14.79,161.02,160.99,45.0]
[1721219038506,14.79,161.02,160.98,6.40068082]
[1721219039584,14.79,161.02,160.99,1.24213991]
[1721219039806,14.79,161.02,160.99,46.24213991]
[1721219039996,14.79,161.02,160.99,45.0]
[1721219040414,1.55261817,161.06,160.99,45.0]
[1721219040598,14.79,161.02,160.99,45.0]
[1721219041611,14.79,161.02,160.99,46.24213815]
[1721219041817,14.79,161.02,160.99,45.0]
[1721219042191,1.55261817,161.06,161.01,10.0]
[1721219042398,14.79,161.08,161.03,10.0]
[1721219042594,14.79,161.08,161.03,34.79]
[1721219042794,14.79,161.07,161.04,45.0]
[1721219043193,14.79,161.07,161.03,45.0]
[1721219043712,14.79,161.07,161.03,10.0]
[1721219043907,14.79,161.07,161.04,45.0]
[1721219044410,14.79,161.08,161.04,45.0]
[1721219044793,1.5520732,161.11,161.04,45.0]
[1721219044794,14.79,161.07,161.04,45.0]
[1721219044996,14.79,161.08,161.04,45.0]
[1721219045789,14.79,161.07,161.04,45.0]
[1721219046915,14.79,161.08,161.04,45.0]
[1721219047310,14.79,161.07,161.04,45.0]
[1721219047800,14.79,161.06,161.04,45.0]
[1721219049815,14.79,161.06,161.01,20.0]
[1721219050013,14.79,161.06,161.02,65.0]
[1721219052404,14.79,161.06,161.02,65.0]
[1721219052599,14.79,161.04,161.02,65.0]
[1721219052798,14.79,161.04,161.02,45.0]
[1721219053394,1.55245816,161.08,161.02,45.0]
[1721219053599,14.79,161.07,161.03,10.0]
[1721219053823,14.79,161.07,161.04,45.0]
[1721219055524,14.79,161.08,161.04,45.0]
[1721219057723,14.79,161.08,161.04,46.24175751]
[1721219057926,7.7590983,161.11,161.04,46.24175751]
[1721219058219,14.79,161.08,161.04,45.0]
[1721219058420,14.79,161.07,161.04,45.0]
[1721219058822,14.79,161.06,161.01,20.0]
[1721219059126,14.79,161.06,161.02,95.0]
[1721219060311,16.34238612,161.05,161.01,10.0]
[1721219060506,14.79,161.05,161.01,10.0]
[1721219061002,14.79,161.05,161.02,1.24192226]
[1721219061205,14.79,161.05,161.01,10.0]
[1721219062219,14.79,161.05,160.99,26.39908455]
[1721219062545,14.79,161.04,161.0,65.0]
[1721219062827,14.79,161.05,161.0,65.0]
[1721219063409,14.79,161.05,161.01,1.24194]
[1721219063629,14.79,161.05,161.0,79.79]
[1721219065135,14.79,161.05,161.01,1.24194076]
[1721219065439,14.79,161.05,161.0,79.79]
[1721219068233,14.79,161.05,161.01,1.24194036]
[1721219068436,14.79,161.05,161.0,79.79]
[1721219068618,14.79,161.05,161.0,65.0]
[1721219072230,16.34242413,161.04,161.0,65.0]
[1721219072414,14.79,161.04,161.0,65.0]
[1721219072615,14.79,161.05,161.01,1.24199327]
[1721219072827,16.34249159,161.04,161.0,65.0]
[1721219073030,14.79,161.04,161.0,65.0]
[1721219073928,16.34259456,161.03,161.0,45.0]
[1721219074237,14.79,161.04,161.01,1.24203932]
[1721219074538,14.79,161.04,161.0,45.0]
[1721219074742,14.79,161.04,161.0,46.24199422]
[1721219075044,14.79,161.04,161.0,45.0]
[1721219075416,14.79,161.04,161.01,1.24199325]
[1721219075615,14.79,161.04,161.0,45.0]
[1721219075821,14.79,161.04,161.01,1.24199317]
[1721219076137,14.79,161.04,161.0,45.0]
[1721219076436,14.79,161.04,161.0,46.2419951]
[1721219076617,14.79,161.04,161.0,45.0]
[1721219078146,1.55249371,161.03,161.0,45.0]
[1721219078319,16.34249371,161.03,161.0,45.0]
[1721219078521,14.79,161.03,161.0,45.0]
[1721219079055,14.79,161.04,161.0,56.242078]
[1721219079224,14.79,161.03,161.0,45.0]
[1721219079541,14.79,161.04,161.0,45.0]
[1721219080215,14.79,161.04,161.0,46.24200833]
[1721219080419,14.79,161.04,161.0,45.0]
[1721219080621,1.55256645,161.03,161.0,45.0]
[1721219080814,16.34258818,161.04,161.0,45.0]
[1721219081123,14.79,161.04,161.0,46.24204188]
[1721219081324,14.79,161.04,161.0,45.0]
[1721219081536,14.79,161.04,161.0,46.2420115]
[1721219082016,14.79,161.04,161.0,45.0]
[1721219082221,14.79,161.04,161.01,1.24200109]
[1721219082441,14.79,161.04,161.0,45.0]
[1721219082739,14.79,161.04,161.01,1.24200123]
[1721219083419,14.79,161.04,161.0,45.0]
[1721219083735,14.79,161.04,161.01,1.24200184]
[1721219084524,14.79,161.04,161.0,45.0]
[1721219084716,14.79,161.03,161.0,45.0]
[1721219085132,16.34254018,161.04,161.0,45.0]
[1721219086542,14.79,161.02,161.0,45.0]
[1721219086737,14.79,161.02,160.99,6.39908455]
[1721219087839,14.79,161.03,160.99,6.39908455]
[1721219088846,14.79,161.03,160.98,11.18908455]
[1721219089049,14.79,161.03,160.97,15.2704]
[1721219089050,14.79,161.03,160.99,45.0]
[1721219089242,14.79,161.03,160.98,45.0]
[1721219090733,14.79,161.03,160.98,59.79]
[1721219090938,14.79,161.03,160.98,45.0]
[1721219093650,1.55264497,161.02,160.98,45.0]
[1721219094747,14.79,161.03,160.98,45.0]
[1721219095251,1.55264434,161.02,160.98,59.79]
[1721219095550,1.55264434,161.02,160.98,45.0]
[1721219096755,16.34264434,161.02,160.98,45.0]
[1721219096958,16.34264434,161.02,160.96,24.79]
[1721219096959,1.55266604,161.01,160.97,45.0]
[1721219097829,1.55266604,161.01,160.94,10.0]
[1721219098047,14.79,160.99,160.95,20.0]
[1721219099650,14.79,160.99,160.96,45.0]
[1721219099843,14.79,161.0,160.96,55.0]
[1721219100045,1.55294411,161.03,160.96,55.0]
[1721219100247,14.79,161.02,160.96,69.79]
[1721219100438,1.55271234,161.04,160.97,14.79]
[1721219100748,14.79,161.03,160.98,45.0]
[1721219101255,16.3426837,161.04,160.99,1.24214696]
[1721219101442,16.3426837,161.04,160.99,11.24214696]
[1721219102542,14.79,161.03,160.99,1.24214696]
[1721219102739,14.79,161.03,160.98,45.0]
[1721219102740,14.79,161.02,160.98,45.0]
[1721219102941,14.79,161.03,160.98,45.0]
[1721219103645,14.79,161.02,160.98,45.0]
[1721219103948,14.79,161.03,160.98,45.0]
[1721219104347,14.79,161.03,160.99,1.24210747]
[1721219104756,14.79,161.03,160.98,59.79]
[1721219105178,14.79,161.03,160.99,1.24211619]
[1721219105772,14.79,161.02,160.98,45.0]
[1721219106062,14.79,161.03,160.99,1.24212286]
[1721219106671,16.34266544,161.02,160.98,45.0]
[1721219106969,14.79,161.02,160.98,45.0]
[1721219107779,14.79,161.02,160.97,45.0]
[1721219108078,14.79,161.02,160.97,65.0]
[1721219109252,14.79,161.02,160.95,10.0]
[1721219109253,1.55266493,161.01,160.95,10.0]
[1721219109451,14.79,160.99,160.96,30.0]
[1721219109648,14.79,160.99,160.93,41.1917]
[1721219109842,1.55302514,160.98,160.93,41.1917]
[1721219110660,14.79,160.99,160.93,41.1917]
[1721219110848,14.79,160.99,160.94,21.24244586]
[1721219111248,21.2483,161.04,160.94,21.24244586]
[1721219111249,16.34305929,160.98,160.94,20.0]